bitfinex/quotes_BTCUSD_20241101
["timestamp","ask_amount","ask_price","bid_price","bid_amount"]
[1730472663661,0.03397941,71181.0,71180.0,0.222788]
[1730472663870,0.03397941,71181.0,71180.0,0.0823]
[1730472664296,0.03397941,71181.0,71180.0,0.222788]
[1730472664568,0.140475,71187.0,71181.0,0.140485]
[1730472664780,0.02091646,71181.0,71180.0,0.222788]
[1730472664993,0.25272944,71188.0,71182.0,0.280966]
[1730472665201,0.03398925,71187.0,71180.0,0.0863]
[1730472665351,0.21101943,71191.0,71180.0,0.0863]
[1730472665563,0.03398554,71190.0,71180.0,0.0863]
[1730472665761,0.21101943,71191.0,71190.0,0.140469]
[1730472665931,0.0339852,71191.0,71183.0,0.280965]
[1730472666133,0.0339852,71190.0,71184.0,0.280962]
[1730472666365,0.21101943,71194.0,71180.0,0.0863]
[1730472666366,0.01307316,71189.0,71180.0,0.367277]
[1730472666569,0.01307316,71188.0,71187.0,0.140474]
[1730472667394,0.01307316,71188.0,71186.0,0.140476]
[1730472667627,0.140477,71186.0,71180.0,0.222788]
[1730472667821,0.01307316,71185.0,71181.0,0.280971]
[1730472668063,0.140468,71191.0,71184.0,0.140481]
[1730472668305,0.03399021,71190.0,71189.0,0.140471]
[1730472668498,0.03399245,71190.0,71189.0,0.140471]
[1730472668742,0.01307402,71190.0,71189.0,0.140471]
[1730472668949,0.00165,71193.0,71192.0,0.140465]
[1730472669935,0.00165,71193.0,71168.0,0.40208202]
[1730472669936,0.15518491,71193.0,71182.0,0.280969]
[1730472670138,0.15518491,71193.0,71168.0,0.40208202]
[1730472670139,0.280946,71188.0,71178.0,0.280983]
[1730472670352,0.00165,71193.0,71168.0,0.21101943]
[1730472670353,0.280958,71185.0,71180.0,0.004825]
[1730472670588,0.00165,71193.0,71180.0,0.000825]
[1730472670589,0.140486,71181.0,71180.0,0.000825]
[1730472670963,0.15355791,71181.0,71180.0,0.000825]
[1730472672032,0.29201316,71181.0,71180.0,0.001825]
[1730472672288,0.31295215,71181.0,71180.0,0.001825]
[1730472672718,0.31395215,71181.0,71180.0,0.002825]
[1730472674376,0.33695215,71181.0,71180.0,0.002825]
[1730472675069,0.33695215,71181.0,71175.0,0.001588]
[1730472675070,0.35455859,71176.0,71175.0,0.001588]
[1730472675280,0.52702474,71176.0,71175.0,0.001588]
[1730472675955,0.52702574,71176.0,71175.0,0.001588]
[1730472676160,0.33596315,71176.0,71175.0,0.001588]
[1730472676885,0.17346715,71176.0,71175.0,0.002588]
[1730472677088,0.0140815,71176.0,71175.0,0.143086]
[1730472677297,0.0140815,71176.0,71175.0,0.002588]
[1730472677585,0.1545775,71176.0,71175.0,0.002588]
[1730472677761,0.009,71176.0,71175.0,0.003588]
[1730472678083,0.141496,71176.0,71175.0,0.002588]
[1730472678238,0.141496,71176.0,71175.0,0.01309594]
[1730472678443,0.143496,71176.0,71175.0,0.01309594]
[1730472678663,0.141496,71176.0,71175.0,0.01309594]
[1730472678847,0.29302681,71176.0,71175.0,0.01309594]
[1730472679018,0.29302681,71176.0,71175.0,0.002588]
[1730472679019,0.30302681,71176.0,71175.0,0.002588]
[1730472679222,0.30502681,71176.0,71175.0,0.002588]
[1730472679424,0.29195125,71176.0,71175.0,0.002588]
[1730472679737,0.4185169,71176.0,71175.0,0.002588]
[1730472679947,0.32394923,71176.0,71175.0,0.002588]
[1730472680143,0.33794923,71176.0,71175.0,0.003588]
[1730472680360,0.34002717,71176.0,71175.0,0.002588]
[1730472680573,0.52008976,71176.0,71175.0,0.002588]
[1730472680749,0.6350092,71176.0,71175.0,0.002588]
[1730472680968,0.7794865,71176.0,71175.0,0.002588]
[1730472681171,0.7794865,71176.0,71163.0,0.001588]
[1730472681172,0.26352,71164.0,71163.0,0.001588]
[1730472681363,0.41505117,71164.0,71163.0,0.001588]
[1730472681597,0.43596626,71164.0,71163.0,0.001588]
[1730472682659,0.31296626,71164.0,71163.0,0.001588]
[1730472682865,0.29205117,71164.0,71163.0,0.001588]
[1730472683098,0.41505117,71164.0,71163.0,0.001588]
[1730472683329,0.60611376,71164.0,71163.0,0.001588]
[1730472683549,0.76282751,71164.0,71163.0,0.002588]
[1730472684000,0.76282751,71164.0,71163.0,0.003588]
[1730472684001,0.77082751,71164.0,71163.0,0.003588]
[1730472684447,0.77082751,71164.0,71159.0,0.001588]
[1730472684448,0.263528,71160.0,71159.0,0.001588]
[1730472684683,0.4359582,71160.0,71159.0,0.001588]
[1730472685131,0.140554,71147.0,71146.0,0.21101943]
[1730472685364,0.263571,71138.0,71126.0,0.111624]
[1730472685570,0.140585,71131.0,71130.0,0.21101943]
[1730472685782,0.27904025,71131.0,71130.0,0.21101943]
[1730472685994,0.27904025,71131.0,71126.0,0.000824]
[1730472685995,0.140593,71127.0,71126.0,0.000824]
[1730472686217,0.27904825,71127.0,71126.0,0.000824]
[1730472687382,0.13845525,71127.0,71126.0,0.000824]
[1730472687798,0.28904825,71127.0,71126.0,0.000824]
[1730472688232,0.14845525,71127.0,71126.0,0.000824]
[1730472688446,0.28904825,71127.0,71126.0,0.000824]
[1730472688599,0.15845525,71127.0,71126.0,0.000824]
[1730472688830,0.29904825,71127.0,71126.0,0.000824]
[1730472689033,0.31211062,71127.0,71126.0,0.000824]
[1730472689233,0.32204825,71127.0,71126.0,0.000824]
[1730472689590,0.33510382,71127.0,71126.0,0.000824]
[1730472690286,0.33510382,71127.0,71117.0,0.21101943]
[1730472690287,0.140611,71118.0,71117.0,0.21101943]
[1730472690487,0.41967925,71118.0,71110.0,0.140626]
[1730472690692,0.13845525,71117.0,71111.0,0.140625]
[1730472690834,0.13845525,71117.0,71109.0,0.20848513]
[1730472690835,0.02,71127.0,71109.0,0.20848513]
[1730472691035,0.21101943,71123.0,71109.0,0.0146766]
[1730472691234,0.02,71127.0,71125.0,0.140596]
[1730472691444,0.13845525,71127.0,71111.0,0.19387479]
[1730472691663,0.13845525,71127.0,71126.0,0.333495]
[1730472691888,0.21101943,71133.0,71132.0,0.140583]
[1730472692126,0.21101943,71142.0,71141.0,0.140565]
[1730472692582,0.21101943,71151.0,71148.0,0.14055]
[1730472692801,0.13845525,71150.0,71149.0,0.14055]
[1730472693002,0.13845525,71150.0,71146.0,0.281109]
[1730472693201,0.02087308,71158.0,71147.0,0.21101943]
[1730472693404,0.15150092,71157.0,71153.0,0.14054]
[1730472693618,0.01304567,71156.0,71146.0,0.0803]
[1730472693862,0.13845525,71155.0,71146.0,0.0803]
[1730472694129,0.01304526,71154.0,71146.0,0.0803]
[1730472694307,0.003,71150.0,71146.0,0.0803]
[1730472694510,0.003,71150.0,71149.0,0.14055]
[1730472694761,0.28107,71157.0,71148.0,0.140551]
[1730472694967,0.13845525,71150.0,71148.0,0.140551]
[1730472695206,0.001,71156.0,71155.0,0.140538]
[1730472695414,0.01404958,71156.0,71155.0,0.140538]
[1730472695620,0.01404958,71156.0,71151.0,0.421634]
[1730472695824,0.01304958,71155.0,71146.0,0.0803]
[1730472696032,0.001,71156.0,71146.0,0.0803]
[1730472696033,0.01304958,71154.0,71147.0,0.281108]
[1730472696169,0.13845525,71155.0,71154.0,0.14054]
[1730472696385,0.02088523,71161.0,71146.0,0.0803]
[1730472696594,0.01,71156.0,71155.0,0.141538]
[1730472696786,0.01,71156.0,71155.0,0.42261]
[1730472697210,0.14845525,71156.0,71155.0,0.001]
[1730472697545,0.30204851,71156.0,71155.0,0.001]
[1730472697749,0.32293913,71156.0,71155.0,0.001]
[1730472697991,0.163538,71155.0,71154.0,0.5]
[1730472698213,0.43594113,71155.0,71154.0,0.5]
[1730472698408,0.43594113,71155.0,71154.0,0.48828125]
[1730472698614,0.140573,71137.0,71136.0,0.21101943]
[1730472698818,0.41508551,71137.0,71136.0,0.21101943]
[1730472699033,0.41508551,71137.0,71125.0,0.083025]
[1730472699034,0.140588,71130.0,71125.0,0.083025]
[1730472699248,0.15151251,71129.0,71125.0,0.083025]
[1730472699466,0.01305726,71128.0,71125.0,0.083025]
[1730472699676,0.15151251,71127.0,71125.0,0.083025]
[1730472699885,0.13845525,71127.0,71125.0,0.083025]
[1730472700327,0.01308009,71126.0,71125.0,0.223622]
[1730472701078,0.002,71127.0,71125.0,0.223622]
[1730472701316,0.15153923,71126.0,71125.0,0.000825]
[1730472701522,0.29213423,71126.0,71125.0,0.000825]
[1730472701717,0.31607093,71126.0,71125.0,0.000825]
[1730472702158,0.17547593,71126.0,71125.0,0.000825]
[1730472702463,0.15454293,71126.0,71125.0,0.000825]
[1730472702745,0.15654293,71126.0,71125.0,0.000825]
[1730472705417,0.17749055,71126.0,71125.0,0.000825]
[1730472705829,0.15819493,71126.0,71125.0,0.141422]
[1730472706177,0.15819493,71126.0,71125.0,0.000825]
[1730472706395,0.31974247,71126.0,71125.0,0.000825]
[1730472707003,0.44274247,71126.0,71125.0,0.000825]
[1730472708600,0.44274247,71126.0,71113.0,0.14062]
[1730472708601,0.123,71125.0,71113.0,0.14062]
[1730472708815,0.17249547,71124.0,71113.0,0.14062]
[1730472709021,0.03404022,71123.0,71113.0,0.14062]
[1730472709241,0.17249547,71122.0,71109.0,0.077026]
[1730472709466,0.17249547,71122.0,71109.0,0.28804543]
[1730472709467,0.1,71115.0,71109.0,0.28804543]
[1730472709684,0.17249547,71114.0,71109.0,0.217654]
[1730472709903,0.03404022,71113.0,71109.0,0.077026]
[1730472710123,0.140627,71110.0,71109.0,0.077026]
[1730472710346,0.17249547,71110.0,71109.0,0.077026]
[1730472710627,0.31312247,71110.0,71109.0,0.000826]
[1730472711195,0.41068362,71110.0,71109.0,0.001826]
[1730472711433,0.31312247,71110.0,71109.0,0.000826]
[1730472711856,0.32212247,71110.0,71109.0,0.001826]
[1730472712070,0.04304022,71110.0,71109.0,0.142455]
[1730472712883,0.009,71110.0,71109.0,0.142455]
[1730472713151,0.21101943,71127.0,71109.0,0.142455]
[1730472713152,0.21101943,71127.0,71110.0,0.1103]
[1730472713310,0.21101943,71118.0,71117.0,0.140613]
[1730472713518,0.13845525,71125.0,71124.0,0.140599]
[1730472714397,0.13845525,71125.0,71123.0,0.281202]
[1730472714398,0.13845525,71125.0,71123.0,0.140601]
[1730472714863,0.14245525,71125.0,71111.0,0.0765]
[1730472715025,0.14245525,71125.0,71114.0,0.21101943]
[1730472715251,0.004,71125.0,71124.0,0.140599]
[1730472716018,0.004,71125.0,71124.0,0.323599]
[1730472716223,0.21101943,71134.0,71124.0,0.464198]
[1730472716443,0.21101943,71134.0,71125.0,0.140597]
[1730472717084,0.21101943,71146.0,71125.0,0.1434086]
[1730472717290,0.21101943,71138.0,71125.0,0.1434086]
[1730472717506,0.21101943,71138.0,71137.0,0.140573]
[1730472717717,0.21101943,71156.0,71155.0,0.140538]
[1730472717931,0.21101943,71156.0,71137.0,0.32355525]
[1730472717932,0.21101943,71156.0,71150.0,0.140547]
[1730472718134,0.00165,71154.0,71149.0,0.281097]
[1730472718349,0.00165,71154.0,71137.0,0.1851]
[1730472718553,0.142191,71154.0,71138.0,0.140571]
[1730472718762,0.13845525,71153.0,71138.0,0.21101943]
[1730472719185,0.27899725,71153.0,71148.0,0.140551]
[1730472719490,0.1,71152.0,71139.0,0.281139]
[1730472719719,0.281096,71150.0,71140.0,0.21101943]
[1730472719936,0.1,71152.0,71140.0,0.21101943]
[1730472719937,0.13845525,71149.0,71140.0,0.21101943]
[1730472720137,0.13845525,71149.0,71141.0,0.281131]
[1730472720417,0.281109,71147.0,71134.0,0.281156]
[1730472720636,0.21266943,71154.0,71137.0,0.1064]
[1730472720637,0.140559,71144.0,71137.0,0.1064]
[1730472720841,0.140569,71139.0,71138.0,0.005]
[1730472721079,0.140569,71139.0,71137.0,0.1064]
[1730472721080,0.140571,71138.0,71137.0,0.1064]
[1730472721313,0.140571,71138.0,71128.0,0.29351943]
[1730472721314,0.34947468,71138.0,71128.0,0.0825]
[1730472721572,0.30108301,71143.0,71121.0,0.21109043]
[1730472721573,0.140597,71125.0,71121.0,0.21109043]
[1730472721783,0.27905225,71125.0,71121.0,0.21109043]
[1730472722209,0.13845525,71125.0,71121.0,7.1e-05]
[1730472722418,0.13845525,71125.0,71124.0,0.141424]
[1730472722856,0.13845525,71125.0,71124.0,0.000825]
[1730472723091,0.27905225,71125.0,71124.0,0.000825]
[1730472723511,0.3326313,71125.0,71124.0,0.000825]
[1730472723742,0.27905225,71125.0,71124.0,0.000825]
[1730472723947,0.15445525,71125.0,71124.0,0.141424]
[1730472724122,0.15445525,71125.0,71124.0,0.000825]
[1730472724535,0.29505225,71125.0,71124.0,0.000825]
[1730472724712,0.15445525,71125.0,71124.0,0.000825]
[1730472725262,0.29505225,71125.0,71124.0,0.000825]
[1730472725494,0.59181421,71125.0,71124.0,0.000825]
[1730472725703,0.50379478,71125.0,71124.0,0.000825]
[1730472726774,0.41805225,71125.0,71124.0,0.000825]
[1730472727330,0.39505225,71125.0,71124.0,0.000825]
[1730472727756,0.29505225,71125.0,71124.0,0.000825]
[1730472728535,0.39505225,71125.0,71124.0,0.000825]
[1730472729174,0.41805225,71125.0,71124.0,0.000825]
[1730472729382,0.54560418,71125.0,71124.0,0.000825]
[1730472731093,0.54560418,71125.0,71121.0,7.1e-05]
[1730472731094,0.263603,71122.0,71121.0,7.1e-05]
[1730472731241,0.65567174,71122.0,71121.0,7.1e-05]
[1730472731635,0.74732807,71122.0,71121.0,7.1e-05]
[1730472732650,0.59345097,71122.0,71121.0,7.1e-05]
[1730472733024,0.79966377,71122.0,71121.0,7.1e-05]
[1730472733631,0.72629667,71122.0,71121.0,7.1e-05]
[1730472734060,0.74029667,71122.0,71121.0,7.1e-05]
[1730472734506,0.67782766,71122.0,71121.0,7.1e-05]
[1730472734714,0.71946997,71122.0,71121.0,7.1e-05]
[1730472735133,0.67782766,71122.0,71121.0,7.1e-05]
[1730472736314,0.62537854,71122.0,71121.0,7.1e-05]
[1730472738526,0.43005825,71122.0,71121.0,7.1e-05]
[1730472739409,0.62145097,71122.0,71121.0,7.1e-05]
[1730472740901,0.62145097,71122.0,71109.0,0.000826]
[1730472740902,0.45501972,71110.0,71109.0,1e-06]
[1730472741107,0.123,71109.0,71103.0,0.21260943]
[1730472741322,0.58887801,71110.0,71103.0,0.00159]
[1730472741323,0.40209225,71105.0,71103.0,0.00159]
[1730472741551,0.4644937,71105.0,71103.0,0.00159]
[1730472742202,0.50509225,71105.0,71103.0,0.00159]
[1730472742409,0.40209225,71105.0,71103.0,0.00159]
[1730472742619,1.085971,71105.0,71103.0,0.00159]
[1730472742837,0.140662,71092.0,71058.0,0.0146766]
[1730472743048,0.140662,71092.0,71088.0,0.21101943]
[1730472743049,0.40211725,71092.0,71088.0,0.21101943]
[1730472743265,0.40211725,71092.0,71083.0,0.22995093]
[1730472743483,0.44370474,71092.0,71083.0,0.22995093]
[1730472743710,0.4645187,71092.0,71083.0,0.22995093]
[1730472743934,0.602996,71092.0,71083.0,0.0189315]
[1730472744158,0.240678,71084.0,71083.0,0.0189315]
[1730472744395,0.59352597,71084.0,71083.0,0.0189315]
[1730472744611,0.63510461,71084.0,71083.0,0.0189315]
[1730472744827,0.73200327,71084.0,71083.0,0.0189315]
[1730472745036,0.79432919,71084.0,71083.0,0.0189315]
[1730472745490,0.14068,71083.0,71074.0,0.00159]
[1730472745757,0.123,71082.0,71074.0,0.00159]
[1730472745978,5.21196625,71081.0,71074.0,0.00159]
[1730472746201,0.33208872,71075.0,71074.0,0.00159]
[1730472746418,0.59354397,71075.0,71074.0,0.00159]
[1730472747055,0.63506107,71075.0,71074.0,0.00159]
[1730472747298,0.63506107,71075.0,71053.0,0.00159]
[1730472747299,0.45510872,71065.0,71053.0,0.21260943]
[1730472747515,4.41356397,71065.0,71053.0,0.21260943]
[1730472747688,1.17256397,71065.0,71053.0,0.21260943]
[1730472747889,0.40217125,71065.0,71053.0,0.21260943]
[1730472748354,0.40217125,71065.0,71059.0,0.1092]
[1730472748764,0.13845525,71065.0,71064.0,0.08389]
[1730472748967,0.27917125,71065.0,71064.0,0.08389]
[1730472749610,0.29317125,71065.0,71064.0,0.08389]
[1730472749807,0.41387422,71065.0,71064.0,0.00159]
[1730472749956,0.71426694,71065.0,71064.0,0.00159]
[1730472750557,0.72826694,71065.0,71064.0,0.00159]
[1730472750980,0.71426694,71065.0,71064.0,0.00159]
[1730472751179,0.71813928,71065.0,71064.0,0.00159]
[1730472751418,0.89913928,71065.0,71064.0,0.00159]
[1730472751823,0.89913928,71065.0,71053.0,0.00159]
[1730472751824,0.263736,71055.0,71053.0,0.00159]
[1730472752101,0.40219125,71055.0,71053.0,0.00159]
[1730472752623,0.37919125,71055.0,71053.0,0.00159]
[1730472753019,0.39319125,71055.0,71053.0,0.00159]
[1730472753448,0.40719125,71055.0,71053.0,0.00159]
[1730472753690,0.37919125,71055.0,71053.0,0.00159]
[1730472754052,0.39319125,71055.0,71053.0,0.00159]
[1730472754258,0.37919125,71055.0,71054.0,0.07679]
[1730472754599,0.37919125,71055.0,71054.0,0.19259]
[1730472754760,0.39319125,71055.0,71054.0,0.19259]
[1730472755109,0.15245525,71055.0,71054.0,0.19259]
[1730472755265,0.13845525,71055.0,71054.0,0.333328]
[1730472755602,0.15245525,71055.0,71054.0,0.333328]
[1730472755842,0.16645525,71055.0,71054.0,0.19259]
[1730472756050,0.140713,71067.0,71055.0,0.140736]
[1730472756251,0.140713,71067.0,71065.0,0.140716]
[1730472756252,0.13845525,71066.0,71065.0,0.140716]
[1730472757312,0.21101943,71077.0,71065.0,0.1926]
[1730472757575,0.13845525,71076.0,71065.0,0.1926]
[1730472757751,0.140697,71075.0,71071.0,0.140703]
[1730472757953,0.13845525,71074.0,71071.0,0.140703]
[1730472758307,0.27915325,71074.0,71071.0,0.140703]
[1730472758747,0.13845525,71074.0,71069.0,0.281416]
[1730472758970,0.140679,71084.0,71081.0,0.140684]
[1730472759181,0.140671,71088.0,71084.0,0.140678]
[1730472759611,0.140673,71087.0,71084.0,0.140678]
[1730472759826,0.28134,71089.0,71082.0,0.1938]
[1730472760047,0.140679,71084.0,71082.0,0.1938]
[1730472760222,0.13845525,71083.0,71076.0,0.140693]
[1730472760461,0.13845525,71083.0,71080.0,0.140685]
[1730472760757,0.13845525,71083.0,71079.0,0.140687]
[1730472760758,0.27913725,71083.0,71079.0,0.140687]
[1730472760932,0.014,71084.0,71083.0,0.14068]
[1730472761151,0.15245525,71084.0,71082.0,0.140681]
[1730472761388,0.15245525,71084.0,71083.0,0.14068]
[1730472761592,0.15245525,71084.0,71083.0,0.1155]
[1730472761593,0.13845525,71084.0,71083.0,0.1155]
[1730472762582,0.27913325,71084.0,71083.0,0.1155]
[1730472762763,0.16045525,71084.0,71083.0,0.1155]
[1730472763148,0.15245525,71084.0,71083.0,0.1155]
[1730472763378,0.29713325,71084.0,71083.0,0.1155]
[1730472763550,0.14845525,71084.0,71083.0,0.1155]
[1730472763954,0.16245525,71084.0,71083.0,0.1155]
[1730472764179,0.01,71084.0,71083.0,0.33448]
[1730472764705,0.02,71084.0,71083.0,0.33448]
[1730472764912,0.01,71084.0,71083.0,0.33448]
[1730472765240,0.023,71084.0,71083.0,0.33448]
[1730472765452,0.024648,71084.0,71083.0,0.33448]
[1730472765658,0.011648,71084.0,71083.0,0.33448]
[1730472765861,0.001648,71084.0,71083.0,0.33448]
[1730472766337,0.005648,71084.0,71083.0,0.33448]
[1730472766484,0.001648,71084.0,71083.0,0.33448]
[1730472766687,0.21101943,71101.0,71100.0,0.140646]
[1730472766888,0.44947468,71101.0,71100.0,0.221646]
[1730472767092,0.34947468,71101.0,71100.0,0.191]
[1730472767299,0.13845525,71101.0,71100.0,0.191]
[1730472767879,0.27909925,71101.0,71100.0,0.191]
[1730472768283,0.27909925,71101.0,71090.0,0.281332]
[1730472768284,0.140664,71092.0,71090.0,0.081]
[1730472768570,0.27911925,71091.0,71090.0,0.081]
[1730472769193,0.1,71100.0,71090.0,0.081]
[1730472769417,0.011,71101.0,71090.0,0.081]
[1730472769628,0.023,71101.0,71100.0,0.249746]
[1730472769852,0.011,71101.0,71100.0,0.326246]
[1730472770106,0.011,71101.0,71091.0,0.281326]
[1730472770107,0.281203,71123.0,71096.0,0.23959625]
[1730472770280,0.001652,71124.0,71118.0,0.281222]
[1730472770501,0.001652,71124.0,71120.0,0.140607]
[1730472770916,0.001652,71124.0,71123.0,0.140601]
[1730472771167,0.001652,71124.0,71118.0,0.281222]
[1730472771386,0.13845525,71123.0,71119.0,0.421827]
[1730472771586,0.13845525,71123.0,71121.0,0.140604]
[1730472771711,0.27905625,71123.0,71120.0,0.140606]
[1730472771913,0.27905625,71123.0,71117.0,0.1091]
[1730472771914,0.13845525,71123.0,71117.0,0.1091]
[1730472772320,0.140605,71121.0,71118.0,0.14061]
[1730472772533,0.140603,71122.0,71119.0,0.140608]
[1730472772891,0.13845525,71122.0,71121.0,0.140605]
[1730472773236,0.13845525,71122.0,71121.0,0.221005]
[1730472773667,0.13845525,71122.0,71121.0,0.0804]
[1730472774058,0.27905825,71122.0,71121.0,0.0804]
[1730472774644,0.28905825,71122.0,71121.0,0.0804]
[1730472774923,0.140619,71114.0,71113.0,0.0756]
[1730472775141,0.27907425,71114.0,71113.0,0.0756]
[1730472775493,0.27907425,71114.0,71106.0,0.1093]
[1730472775494,0.140633,71107.0,71106.0,0.1093]
[1730472775698,0.37908825,71107.0,71106.0,0.1093]
[1730472775904,0.140639,71104.0,71103.0,0.0756]
[1730472776264,0.27909425,71104.0,71103.0,0.0756]
[1730472776465,0.27909425,71104.0,71095.0,0.1106]
[1730472776739,0.140654,71096.0,71095.0,0.1106]
[1730472776951,0.27910925,71096.0,71095.0,0.1106]
[1730472778097,0.28510925,71096.0,71095.0,0.1106]
[1730472778310,0.146654,71096.0,71095.0,0.1106]
[1730472778523,0.28510925,71096.0,71095.0,0.1106]
[1730472779582,0.15045525,71096.0,71095.0,0.1106]
[1730472779818,0.29110925,71096.0,71095.0,0.1106]
[1730472781165,0.140674,71086.0,71085.0,0.0782]
[1730472781374,0.27912925,71086.0,71085.0,0.0782]
[1730472782019,0.27912925,71086.0,71084.0,0.120224]
[1730472782020,0.140676,71085.0,71084.0,0.120224]
[1730472782218,0.27913125,71085.0,71084.0,0.120224]
[1730472782632,0.27913125,71085.0,71070.0,0.281409]
[1730472782633,0.240704,71071.0,71070.0,0.1191]
[1730472782850,0.37915925,71071.0,71070.0,0.1191]
[1730472784337,0.39215925,71071.0,71070.0,0.1191]
[1730472785534,0.40515925,71071.0,71070.0,0.1191]
[1730472785936,0.140721,71063.0,71051.0,0.0775]
[1730472786142,0.140716,71065.0,71057.0,0.281464]
[1730472786345,0.16445525,71071.0,71057.0,0.281464]
[1730472786346,0.026,71071.0,71058.0,0.1161]
[1730472786579,0.026,71071.0,71070.0,0.334306]
[1730472786787,0.013,71071.0,71070.0,0.334306]
[1730472786998,0.28138,71079.0,71072.0,0.140701]
[1730472787199,0.140702,71073.0,71070.0,0.1936]
[1730472787404,0.281388,71076.0,71070.0,0.1936]
[1730472787610,0.13845525,71075.0,71070.0,0.1936]
[1730472787815,0.140718,71064.0,71061.0,0.0807]
[1730472788070,0.140722,71062.0,71061.0,0.0807]
[1730472788281,0.27917725,71062.0,71061.0,0.0807]
[1730472788720,0.140716,71065.0,71061.0,0.0807]
[1730472788937,0.140722,71062.0,71061.0,0.0807]
[1730472789245,0.27917725,71062.0,71061.0,0.0807]
[1730472789673,0.13845525,71062.0,71061.0,0.0807]
[1730472790091,0.281406,71072.0,71061.0,0.0807]
[1730472790299,0.012,71062.0,71061.0,0.0807]
[1730472790504,0.14073,71058.0,71057.0,0.000824]
[1730472790655,0.37918525,71058.0,71057.0,0.000824]
[1730472790855,0.40218525,71058.0,71057.0,0.000824]
[1730472791938,0.41018525,71058.0,71057.0,0.000824]
[1730472792145,0.54866255,71058.0,71057.0,0.000824]
[1730472792764,0.38718525,71058.0,71057.0,0.000824]
[1730472792995,0.39518525,71058.0,71057.0,0.000824]
[1730472793420,0.37918525,71058.0,71057.0,0.000824]
[1730472793755,0.40718525,71058.0,71057.0,0.000824]
[1730472793961,0.39318525,71058.0,71057.0,0.000824]
[1730472794410,0.40718525,71058.0,71057.0,0.000824]
[1730472794613,0.51933818,71058.0,71057.0,0.000824]
[1730472795026,0.40718525,71058.0,71057.0,0.000824]
[1730472795181,0.37918525,71058.0,71057.0,0.000824]
[1730472795580,0.41618525,71058.0,71057.0,0.000824]
[1730472796025,0.40218525,71058.0,71057.0,0.000824]
[1730472796500,0.41618525,71058.0,71057.0,0.000824]
[1730472796716,0.41618525,71058.0,71041.0,0.21101943]
[1730472796717,0.263761,71042.0,71041.0,0.21101943]
[1730472796936,0.263761,71042.0,71025.0,0.140794]
[1730472796937,0.140781,71032.0,71025.0,0.140794]
[1730472797153,0.27923625,71032.0,71026.0,0.140791]
[1730472797375,0.27923625,71032.0,71021.0,0.281605]
[1730472797376,0.140783,71031.0,71021.0,0.281605]
[1730472797596,0.27923825,71031.0,71025.0,0.140794]
[1730472797807,0.27923825,71031.0,71024.0,0.140797]
[1730472798021,0.13845525,71031.0,71029.0,0.140787]
[1730472798237,0.008,71042.0,71015.0,0.21101943]
[1730472798449,0.140783,71031.0,71024.0,0.281594]
[1730472798682,0.27923825,71031.0,71028.0,0.220388]
[1730472798884,0.27923825,71031.0,71028.0,0.0796]
[1730472799515,0.27923825,71031.0,71030.0,1.001]
[1730472800161,0.27923825,71031.0,71030.0,1.0]
[1730472800372,0.27923825,71031.0,71030.0,1.001]
[1730472801724,0.27923825,71031.0,71030.0,1.0]
[1730472802153,0.30723825,71031.0,71030.0,1.0]
[1730472802654,0.014,71031.0,71030.0,1.0]
[1730472802862,0.29323825,71031.0,71030.0,1.0]
[1730472803097,0.30723825,71031.0,71030.0,1.0]
[1730472803312,0.29323825,71031.0,71030.0,1.0]
[1730472803524,0.13845525,71031.0,71030.0,1.000824]
[1730472803740,0.15245525,71031.0,71030.0,1.000824]
[1730472804398,0.15245525,71031.0,71030.0,1.141609]
[1730472804608,0.014,71031.0,71030.0,1.141609]
[1730472804824,0.028,71031.0,71030.0,1.141609]
[1730472805465,0.014,71031.0,71030.0,1.141609]
[1730472805666,0.39323825,71031.0,71030.0,1.000824]
[1730472805886,0.40723825,71031.0,71030.0,1.000824]
[1730472806130,0.40723825,71031.0,71012.0,0.001592]
[1730472806131,0.263819,71013.0,71012.0,0.001592]
[1730472806626,0.40227425,71013.0,71012.0,0.00194437]
[1730472806840,0.40227425,71013.0,71012.0,0.001592]
[1730472806841,5.35057855,71013.0,71012.0,0.001592]
[1730472807057,0.54075155,71013.0,71012.0,0.001592]
[1730472807285,0.263843,71001.0,70971.0,0.21101943]
[1730472807515,0.6418945,71001.0,70991.0,0.21101943]
[1730472807722,0.6418945,71001.0,70971.0,0.21101943]
[1730472807932,0.6418945,71001.0,70967.0,0.0752]
[1730472807933,3.1068945,71001.0,71000.0,5.9e-07]
[1730472808153,3.1068945,71001.0,70972.0,0.21101943]
[1730472808154,0.140898,70973.0,70972.0,0.21101943]
[1730472808366,0.27935325,70973.0,70972.0,0.21101943]
[1730472808579,0.27935325,70973.0,70967.0,0.0752]
[1730472808580,0.140908,70968.0,70967.0,0.0752]
[1730472808799,0.27936325,70968.0,70967.0,0.0752]
[1730472809696,0.13845525,70968.0,70967.0,0.0752]
[1730472809912,0.014,70973.0,70967.0,0.0752]
[1730472809913,0.140906,70970.0,70967.0,0.0752]
[1730472810167,0.140906,70969.0,70967.0,0.0752]
[1730472810393,0.140908,70968.0,70967.0,0.0752]
[1730472810598,0.29036325,70968.0,70967.0,0.0752]
[1730472810804,0.30136325,70968.0,70967.0,0.0752]
[1730472811007,0.16045525,70968.0,70967.0,0.0752]
[1730472811219,0.14945525,70968.0,70967.0,0.0752]
[1730472811459,0.011,70968.0,70967.0,0.0752]
[1730472811670,0.011,70968.0,70967.0,0.21611]
[1730472811898,0.011,70969.0,70967.0,0.21611]
[1730472811899,0.1384773,71001.0,70971.0,0.281805]
[1730472812097,0.011,70969.0,70968.0,0.140908]
[1730472812296,0.011,70969.0,70968.0,0.422725]
[1730472812511,0.011,70969.0,70968.0,0.140908]
[1730472812740,0.011,70969.0,70967.0,0.0752]
[1730472812741,0.281799,70973.0,70967.0,0.0752]
[1730472812936,0.140908,70968.0,70967.0,0.0752]
[1730472813086,0.27936325,70968.0,70967.0,0.0752]
[1730472813487,0.49038268,70968.0,70967.0,0.0752]
[1730472813762,0.14091,70967.0,70966.0,0.1073]
[1730472813978,0.240922,70961.0,70956.0,9e-05]
[1730472814165,0.240922,70961.0,70960.0,0.995]